fUST/lending_fUST_20250614
["ID","MTS","AMOUNT","RATE_DAILY","PERIOD"]
[365738077,1749859841514,-151.0,0.0002378,7]
[365738078,1749859841525,-153.067976,0.0002378,7]
[365738079,1749859841535,-153.067976,0.0002378,7]
[365738080,1749859841545,-151.0,0.0002378,7]
[365738081,1749859841555,-151.0,0.0002378,7]
[365738082,1749859841565,-151.0,0.0002378,7]
[365738083,1749859841575,-394.616137,0.0002378,7]
[365738084,1749859841584,-394.616137,0.0002378,7]
[365738085,1749859841594,-151.0,0.0002378,7]
[365738086,1749859841604,-151.0,0.0002378,7]
[365738087,1749859841614,-151.0,0.0002378,7]
[365738088,1749859841624,-151.0,0.0002378,7]
[365738089,1749859841633,-151.0,0.0002378,7]
[365738090,1749859841643,-151.0,0.0002378,7]
[365738091,1749859841652,-151.0,0.0002378,7]
[365738092,1749859841662,-151.0,0.0002378,7]
[365738093,1749859841672,-151.0,0.0002378,7]
[365738094,1749859841682,-151.0,0.0002378,7]
[365738095,1749859841691,-151.0,0.0002378,7]
[365738096,1749859841701,-151.0,0.0002378,7]
[365738097,1749859841710,-151.0,0.0002378,7]
[365738098,1749859841722,-151.0,0.0002378,7]
[365738099,1749859841732,-151.0,0.0002378,7]
[365738100,1749859841742,-162.48241,0.0002378,7]
[365738101,1749859841751,-151.0,0.0002378,7]
[365738102,1749859841760,-191.133186,0.0002378,7]
[365738103,1749859841770,-191.133186,0.0002378,7]
[365738104,1749859841780,-820.570669,0.0002378,7]
[365738105,1749859841789,-820.570669,0.0002378,7]
[365738106,1749859841799,-151.0,0.0002378,7]
[365738107,1749859841808,-151.0,0.0002378,7]
[365738108,1749859841817,-151.0,0.0002378,7]
[365738109,1749859841830,-301.655952,0.0002378,7]
[365738110,1749859841840,-301.655952,0.0002378,7]
[365738111,1749859841848,-4807.561423,0.0002378,2]
[365738112,1749859841858,-4807.561423,0.0002378,2]
[365738113,1749859841867,-151.0,0.0002378,7]
[365738114,1749859841877,-860.280305,0.0002378,7]
[365738115,1749859841886,-860.280305,0.0002378,7]
[365738116,1749859841896,-158.544721,0.0002378,7]
[365738117,1749859841905,-158.544721,0.0002378,7]
[365738118,1749859841914,-5203.03871495,0.00023794,2]
[365738119,1749859841924,-712.4,0.000238,7]
[365738120,1749859841933,-1121.84,0.000238,2]
[365738121,1749859841943,-13269.51631507,0.000238,2]
[365738122,1749859842161,-151.0,0.00022843,7]
[365738123,1749859842171,-151.0,0.0002332,7]
[365738124,1749859842185,-151.0,0.000237,7]
[365738125,1749859842195,-151.0,0.00023747,3]
[365738126,1749859842204,-207.16664938,0.00023747,3]
[365738146,1749859843379,-0.04493955,0.00023747,3]
[365738147,1749859843484,-460.0,0.00021807,4]
[365738148,1749859843493,-109.78841107,0.00023747,3]
[365738149,1749859843503,-317.0,0.00023747,3]
[365738150,1749859843512,-1745.0,0.00023747,3]
[365738151,1749859843522,-151.0,0.0002378,7]
[365738152,1749859843532,-27911.92020425,0.000238,2]
[365738153,1749859843542,-21981.70437401,0.000238,3]
[365738168,1749859845804,-460.0,0.00021808,4]
[365738169,1749859845814,-460.0,0.00022082,4]
[365738170,1749859845823,-151.0,0.00022843,7]
[365738171,1749859845832,-151.0,0.0002332,7]
[365738172,1749859845841,-151.0,0.000237,7]
[365738173,1749859845852,-151.0,0.00023747,3]
[365738174,1749859845861,-151.0,0.00023747,3]
[365738175,1749859845870,-317.0,0.00023747,3]
[365738176,1749859845879,-151.0,0.00023747,3]
[365738177,1749859845976,-317.0,0.00023747,3]
[365738178,1749859845986,-1745.0,0.00023747,3]
[365738179,1749859845995,-151.0,0.00023747,3]
[365738180,1749859846004,-1745.0,0.00023747,3]
[365738181,1749859846013,-317.0,0.00023747,3]
[365738182,1749859846022,-151.0,0.00023747,3]
[365738183,1749859846032,-151.0,0.0002378,7]
[365738184,1749859846041,-239.62,0.0002379,10]
[365738185,1749859846051,-35067.07917435,0.000238,3]
[365738186,1749859967047,2837.7,0.0002,2]
[365738187,1749860004253,273.6,0.00024945,120]
[365738188,1749860011253,200.0,0.00024539,120]
[365738189,1749860131387,200.0,0.00023797,120]
[365738190,1749860141915,2187.51893063,0.00024657,120]
[365738192,1749860371338,200.0,0.00024184,120]
[365738193,1749860538653,161.87761639,0.0002,2]
[365738194,1749860551317,200.0,0.00024617,120]
[365738195,1749860614200,851.4,0.00024944,60]
[365738196,1749860791190,200.0,0.0002433,120]
[365738197,1749860799553,790.0,0.00024657,120]
[365738198,1749860828129,-445.63788,0.00020663,2]
[365738199,1749860833118,-4192.36212,0.00020663,2]
[365738200,1749860833145,-500.0,0.00021083,2]
[365738201,1749860833170,-418.78499545,0.00021694,2]
[365738202,1749860833196,-1200.0,0.00021805,2]
[365738203,1749860833222,-295.329,0.00021806,2]
[365738204,1749860833247,-300.0,0.00021806,2]
[365738205,1749860833276,-300.0,0.00021806,2]
[365738206,1749860833302,-300.0,0.00021806,2]
[365738207,1749860833328,-460.0,0.00021807,4]
[365738208,1749860833355,-460.0,0.00021807,4]
[365738209,1749860833381,-339.95866092,0.00021807,4]
[365738210,1749860833405,-430.0,0.00021807,4]
[365738211,1749860833432,-440.0,0.00021807,4]
[365738212,1749860833458,-460.0,0.00021807,4]
[365738213,1749860833676,-460.0,0.00021807,4]
[365738214,1749860833700,-460.0,0.00021807,4]
[365738215,1749860833723,-147.45747535,0.00021807,4]
[365738216,1749860836852,1000.0,0.00024657,120]
[365738217,1749860841080,-2209.3343744,0.00020807,2]
[365738218,1749860841102,-292.54252465,0.00021807,4]
[365738219,1749860841123,-460.0,0.00021807,4]
[365738220,1749860841145,-440.0,0.00021807,4]
[365738221,1749860841166,-460.0,0.00021807,4]
[365738222,1749860841188,-79.7873485,0.00021807,4]
[365738223,1749860842071,-340.2126515,0.00021807,4]
[365738224,1749860842092,-440.0,0.00021807,4]
[365738225,1749860842113,-460.0,0.00021807,4]
[365738226,1749860842135,-147.59794586,0.00021807,4]
[365738227,1749860851105,200.0,0.00024437,120]
[365738229,1749860912374,16552.43234664,0.00018,2]
[365738230,1749860912396,13582.57227684,0.00018,2]
[365738231,1749860913305,1517.32243035,0.0002,2]
[365738232,1749860919457,1109.52767583,0.0002,2]
[365738240,1749860971434,200.0,0.00023967,120]
[365738244,1749860982587,160.589428,0.00013699,2]
[365738248,1749861005205,-166.0273955,0.00021806,4]
[365738249,1749861015794,-166.0273955,0.00021806,4]
[365738288,1749861031886,-4713.3201518,0.00020819,2]
[365738292,1749861032045,-18476.7715881,0.00020819,2]
[365738294,1749861032055,-500.0,0.00021083,2]
[365738296,1749861032065,-5000.0,0.00021543,2]
[365738298,1749861032074,-480.0,0.00021805,2]
[365738300,1749861032084,-300.0,0.00021805,2]
[365738302,1749861032093,-127.945209,0.00021806,4]
[365738304,1749861032103,-460.0,0.00021806,4]
[365738307,1749861032113,-460.0,0.00021806,4]
[365738309,1749861032123,-460.0,0.00021806,4]
[365738311,1749861032133,-2373.66,0.00021806,4]
[365738314,1749861032142,-460.0,0.00021806,4]
[365738317,1749861032152,-460.0,0.00021806,4]
[365738319,1749861032162,-460.0,0.00021806,4]
[365738320,1749861032171,-460.0,0.00021806,4]
[365738321,1749861032181,-460.0,0.00021806,4]
[365738323,1749861032190,-460.0,0.00021806,4]
[365738324,1749861032199,-312.40205414,0.00021807,4]
[365738325,1749861032210,-440.0,0.00021807,4]
[365738326,1749861032219,-376.65043904,0.00021807,4]
[365738327,1749861032228,-460.0,0.00021807,4]
[365738328,1749861032238,-460.0,0.00021807,4]
[365738329,1749861032248,-430.0,0.00021807,4]
[365738330,1749861032257,-460.0,0.00021807,4]
[365738331,1749861032266,-460.0,0.00021807,4]
[365738332,1749861032276,-460.0,0.00021807,4]
[365738333,1749861032285,-527.74761476,0.00021807,4]
[365738334,1749861032294,-460.0,0.00021807,2]
[365738335,1749861032305,-430.0,0.00021807,4]
[365738336,1749861032315,-430.0,0.00021807,4]
[365738337,1749861032325,-430.0,0.00021807,4]
[365738338,1749861032334,-500.0,0.00021807,4]
[365738339,1749861032344,-430.0,0.00021807,4]
[365738340,1749861032354,-460.0,0.00021807,4]
[365738341,1749861032368,-460.0,0.00021807,4]
[365738342,1749861032377,-460.0,0.00021807,4]
[365738343,1749861032387,-432.13090303,0.00021807,4]
[365738344,1749861032396,-440.0,0.00021807,4]
[365738345,1749861032406,-430.01611677,0.00021807,4]
[365738346,1749861032415,-460.0,0.00021807,4]
[365738347,1749861032425,-460.0,0.00021807,4]
[365738348,1749861032435,-460.0,0.00021807,4]
[365738349,1749861032445,-504.94440166,0.00021808,4]
[365738350,1749861032605,-460.0,0.00021808,4]
[365738351,1749861032615,-430.0,0.00021808,4]
[365738352,1749861032625,-430.0,0.00021808,4]
[365738353,1749861032635,-420.0,0.00021808,4]
[365738354,1749861032643,-430.0,0.00021808,4]
[365738355,1749861032652,-430.0,0.00021808,4]
[365738356,1749861032662,-460.0,0.00021808,4]
[365738357,1749861032671,-430.0,0.00021808,4]
[365738358,1749861032681,-430.0,0.00021808,4]
[365738359,1749861032690,-430.0,0.00021808,4]
[365738360,1749861032699,-430.0,0.00021808,4]
[365738361,1749861032708,-450.0,0.00021808,4]
[365738362,1749861032718,-430.0,0.00021808,4]
[365738363,1749861032728,-430.0,0.00021808,4]
[365738364,1749861032738,-460.0,0.00021808,4]
[365738365,1749861032747,-460.0,0.00021808,4]
[365738366,1749861032756,-460.0,0.00021808,4]
[365738367,1749861032766,-593.15064607,0.00021808,4]
[365738368,1749861032775,-460.0,0.00021808,4]
[365738369,1749861032785,-420.0,0.00021808,4]
[365738370,1749861032794,-201.30607031,0.00021808,4]
[365738371,1749861032804,-460.0,0.00021808,4]
[365738372,1749861032814,-430.0,0.00021808,4]
[365738373,1749861032824,-500.0,0.00021808,4]
[365738374,1749861032833,-430.0,0.00021808,4]
[365738375,1749861032843,-420.0,0.00021808,4]
[365738376,1749861032853,-386.71481156,0.00021808,4]
[365738377,1749861032862,-500.0,0.00021836,4]
[365738378,1749861032872,-1500.41,0.00021861,2]
[365738379,1749861032880,-500.0,0.00021863,4]
[365738380,1749861032890,-500.0,0.00021891,4]
[365738381,1749861032899,-1024.9867132,0.000219,6]
[365738382,1749861032909,-500.0,0.00021918,4]
[365738383,1749861032918,-500.0,0.00021946,4]
[365738384,1749861032927,-500.0,0.00021973,4]
[365738385,1749861032937,-316.5437607,0.00021981,2]
[365738386,1749861032946,-188.0,0.00022,2]
[365738387,1749861032955,-500.0,0.00022,4]
[365738388,1749861032965,-1024.98671319,0.00022003,6]
[365738389,1749861032974,-401.19998337,0.00022028,4]
[365738390,1749861032983,-207.4,0.00022052,2]
[365738391,1749861032993,-460.0,0.0002208,4]
[365738392,1749861033002,-460.0,0.0002208,4]
[365738393,1749861033011,-460.0,0.0002208,4]
[365738394,1749861033021,-410.0,0.0002208,4]
[365738395,1749861033030,-2373.66,0.0002208,4]
[365738396,1749861033040,-460.0,0.0002208,4]
[365738397,1749861033050,-460.0,0.0002208,4]
[365738398,1749861033060,-460.0,0.0002208,4]
[365738399,1749861033069,-460.0,0.0002208,4]
[365738400,1749861033078,-460.0,0.0002208,4]
[365738401,1749861033088,-506.73359417,0.0002208,4]
[365738402,1749861033098,-460.0,0.00022081,4]
[365738403,1749861033107,-440.0,0.00022081,4]
[365738404,1749861033118,-460.0,0.00022081,4]
[365738405,1749861033127,-460.0,0.00022081,4]
[365738406,1749861033136,-415.46472631,0.00022081,4]
[365738407,1749861033146,-460.0,0.00022081,4]
[365738408,1749861033156,-460.0,0.00022081,4]
[365738409,1749861033166,-460.0,0.00022081,4]
[365738410,1749861033176,-460.0,0.00022081,4]
[365738411,1749861033191,-410.0,0.00022081,4]
[365738412,1749861033202,-460.0,0.00022081,4]
[365738413,1749861033211,-390.0,0.00022081,4]
[365738414,1749861033221,-276.97446327,0.00022081,4]
[365738415,1749861033230,-460.0,0.00022082,4]
[365738416,1749861033240,-400.0,0.00022082,4]
[365738417,1749861033250,-399.18896769,0.00022082,4]
[365738418,1749861033259,-165.32218886,0.00022082,4]
[365738419,1749861033269,-460.0,0.00022082,4]
[365738420,1749861033279,-390.0,0.00022082,4]
[365738421,1749861033288,-400.0,0.00022082,4]
[365738422,1749861033298,-397.78331136,0.00022084,2]
[365738423,1749861033309,-1024.98671319,0.00022107,6]
[365738424,1749861033319,-500.0,0.00022155,2]
[365738425,1749861033329,-1024.98671319,0.0002221,6]
[365738426,1749861033339,-1024.98671319,0.00022314,7]
[365738427,1749861033348,-328.0,0.00022325,2]
[365738428,1749861033360,-410.0,0.00022354,4]
[365738429,1749861033378,-460.0,0.00022354,4]
[365738430,1749861033392,-460.0,0.00022354,4]
[365738431,1749861033402,-2373.66,0.00022354,4]
[365738432,1749861033411,-460.0,0.00022354,4]
[365738433,1749861033421,-460.0,0.00022354,4]
[365738434,1749861033431,-460.0,0.00022354,4]
[365738435,1749861033441,-460.0,0.00022354,4]
[365738436,1749861033451,-370.0,0.00022354,4]
[365738437,1749861033460,-460.0,0.00022355,4]
[365738438,1749861033470,-460.0,0.00022355,4]
[365738439,1749861033480,-390.0,0.00022355,4]
[365738440,1749861033489,-441.6063874,0.00022355,4]
[365738441,1749861033499,-460.0,0.00022355,4]
[365738442,1749861033509,-460.0,0.00022355,4]
[365738443,1749861033519,-460.0,0.00022355,4]
[365738444,1749861033528,-460.0,0.00022355,4]
[365738445,1749861033538,-460.0,0.00022356,4]
[365738446,1749861033548,-217.11675586,0.00022356,4]
[365738447,1749861033557,-1024.98671319,0.00022417,7]
[365738448,1749861033567,-1024.98671319,0.00022521,7]
[365738449,1749861033578,-328.0,0.00022583,2]
[365738450,1749861033588,-324.2,0.00022614,10]
[365738451,1749861033598,-1024.98671319,0.00022624,7]
[365738452,1749861033607,-460.0,0.00022628,4]
[365738453,1749861033617,-460.0,0.00022628,4]
[365738454,1749861033627,-2373.66,0.00022628,4]
[365738455,1749861033638,-460.0,0.00022628,4]
[365738456,1749861033647,-460.0,0.00022628,4]
[365738457,1749861033658,-460.0,0.00022628,4]
[365738458,1749861033668,-460.0,0.00022628,4]
[365738459,1749861033678,-460.0,0.00022629,4]
[365738460,1749861033688,-460.0,0.00022629,4]
[365738461,1749861033697,-370.0,0.00022629,4]
[365738462,1749861033707,-460.0,0.00022629,4]
[365738463,1749861033716,-460.0,0.00022629,4]
[365738464,1749861033726,-265.13286827,0.00022629,2]
[365738465,1749861033736,-500.0,0.00022629,2]
[365738466,1749861033746,-387.43756851,0.00022629,4]
[365738467,1749861033756,-460.0,0.0002263,4]
[365738468,1749861033766,-160.0,0.00022696,2]
[365738469,1749861033776,-424.32678023,0.00022696,2]
[365738470,1749861033786,-160.0,0.00022696,2]
[365738471,1749861033796,-229.78555783,0.00022696,2]
[365738472,1749861033807,-835.28007164,0.00022696,2]
[365738473,1749861033817,-1265.32,0.000227,7]
[365738474,1749861033827,-951.32321575,0.00022702,2]
[365738475,1749861033837,-1024.98671319,0.00022728,7]
[365738476,1749861033846,-328.0,0.00022809,2]
[365738477,1749861033855,-1024.98671319,0.00022831,8]
[365738478,1749861033865,-460.0,0.00022902,4]
[365738479,1749861033874,-460.0,0.00022902,4]
[365738480,1749861033884,-2373.66,0.00022902,4]
[365738481,1749861033893,-460.0,0.00022902,4]
[365738482,1749861033903,-460.0,0.00022902,4]
[365738483,1749861033913,-350.0,0.00022902,4]
[365738484,1749861033923,-330.0,0.00022902,4]
[365738485,1749861033932,-423.75,0.00022903,4]
[365738486,1749861033942,-460.0,0.00022903,4]
[365738487,1749861033951,-460.0,0.00022903,4]
[365738488,1749861033961,-460.0,0.00022903,4]
[365738489,1749861033971,-389.04,0.00022925,10]
[365738490,1749861033980,-1024.98671319,0.00022934,8]
[365738491,1749861033990,-305.53,0.0002298,10]
[365738492,1749861033999,-3468.69247664,0.00022982,2]
[365738493,1749861034009,-982.67,0.0002299,3]
[365738494,1749861034019,-491.34,0.0002299,3]
[365738495,1749861034028,-245.67,0.0002299,3]
[365738496,1749861034037,-737.02,0.0002299,3]
[365738497,1749861034047,-4081.67921094,0.00023,3]
[365738498,1749861034058,-6016.01930821,0.00023,60]
[365738499,1749861034067,-1097.02380521,0.00023,30]
[365738500,1749861034077,-37005.46662948,0.00023,2]
[365738501,1749861034086,-16522.13331292,0.00023,20]
[365738502,1749861034100,-60036.33459647,0.00023,20]
[365738509,1749861037930,-405.55758452,0.0002186,2]
[365738527,1749861040081,-307.7040376,0.0002186,2]
[365738572,1749861045868,-287.30133394,0.00021806,4]
[365738573,1749861045878,-460.0,0.00021806,4]
[365738574,1749861045888,-559.95,0.00021806,4]
[365738575,1749861045898,-4286.73837788,0.0002186,2]
[365738576,1749861045908,-460.0,0.0002208,4]
[365738577,1749861045917,-559.95,0.0002208,4]
[365738578,1749861045926,-460.0,0.00022354,4]
[365738579,1749861045936,-559.95,0.00022354,4]
[365738580,1749861045945,-460.0,0.00022628,4]
[365738581,1749861045954,-559.95,0.00022628,4]
[365738582,1749861045963,-460.0,0.00022902,4]
[365738583,1749861045972,-559.95,0.00022902,4]
[365738584,1749861045982,-270.17,0.0002299,10]
[365738585,1749861045991,-500.0,0.00022999,2]
[365738586,1749861046005,-500.0,0.00022999,2]
[365738587,1749861046017,-500.0,0.00022999,2]
[365738588,1749861046026,-500.0,0.00022999,2]
[365738589,1749861046035,-500.0,0.00022999,2]
[365738590,1749861046044,-500.0,0.00022999,2]
[365738591,1749861046053,-500.0,0.00022999,2]
[365738592,1749861046064,-500.0,0.00022999,2]
[365738593,1749861046074,-500.0,0.00022999,2]
[365738594,1749861046082,-534.91943506,0.00022999,2]
[365738595,1749861046092,-6440.21085312,0.00023,20]
[365738596,1749861046107,-14748.07946222,0.00023,20]
[365738597,1749861046118,-26981.93746636,0.00023,20]
[365738598,1749861125041,-166.0273955,0.00021805,2]
[365738599,1749861131404,-333.9726045,0.00021806,4]
[365738600,1749861134758,-165.39116841,0.00021806,4]
[365738601,1749861138309,-67.88622709,0.00021806,4]
[365738602,1749861138330,-158.46845455,0.00021806,4]
[365738603,1749861211067,200.0,0.00024047,120]
[365738604,1749861271611,200.0,0.00024242,120]
[365738607,1749861454753,200.0,0.00024122,120]
[365738608,1749861511289,200.0,0.00023682,120]
[365738609,1749861571709,200.0,0.00024123,120]
[365738610,1749861631091,200.0,0.00024463,120]
[365738611,1749861691649,200.0,0.00024429,120]
[365738613,1749861907652,1014.86578217,0.0002,2]
[365738614,1749862031129,-173.082128,0.00020654,2]
[365738615,1749862031151,-253.84378,0.000209,2]
[365738616,1749862032184,-317.51905728,0.000209,2]
[365738617,1749862032207,-300.0,0.00021083,2]
[365738618,1749862032228,-209.0,0.00021205,2]
[365738619,1749862032251,-209.0,0.00021266,2]
[365738620,1749862032273,-209.0,0.00021345,2]
[365738621,1749862032294,-209.0,0.00021429,2]
[365738622,1749862032316,-209.0,0.00021628,2]
[365738623,1749862032335,-245.29168439,0.00021706,2]
[365738624,1749862032480,-209.0,0.00021795,2]
[365738625,1749862032502,-300.0,0.00021803,2]
[365738626,1749862032523,-300.0,0.00021803,2]
[365738627,1749862032546,-999.92556039,0.00021804,2]
[365738628,1749862032567,-460.0,0.00021804,4]
[365738629,1749862032587,-460.0,0.00021804,4]
[365738630,1749862032608,-460.0,0.00021804,4]
[365738631,1749862032629,-460.0,0.00021804,4]
[365738632,1749862032652,-486.49,0.00021804,4]
[365738633,1749862032674,-460.0,0.00021804,4]
[365738634,1749862032695,-461.7281109,0.00021804,4]
[365738635,1749862032717,-460.0,0.00021804,4]
[365738636,1749862032740,-210.87351701,0.00021804,4]
[365738637,1749862036087,-2704.37648299,0.00021804,4]
[365738638,1749862036110,-733.72,0.00021804,4]
[365738639,1749862036134,-460.0,0.00021804,4]
[365738640,1749862036157,-580.15378132,0.00021804,4]
[365738641,1749862036180,-460.0,0.00021804,4]
[365738642,1749862036201,-460.0,0.00021804,4]
[365738643,1749862036222,-460.0,0.00021804,4]
[365738644,1749862036243,-460.0,0.00021804,4]
[365738645,1749862036266,-460.0,0.00021804,4]
[365738646,1749862036286,-460.0,0.00021804,4]
[365738647,1749862036306,-410.0,0.00021804,4]
[365738648,1749862036329,-15.28913991,0.00021804,4]
[365738649,1749862051092,-444.71086009,0.00021804,4]
[365738650,1749862051122,-97.98108532,0.00021804,4]
[365738652,1749862171400,200.0,0.0002445,120]
[365738653,1749862209244,380.90855819,0.00019704,2]
[365738655,1749862230149,160.936316,0.00013699,2]
[365738664,1749862232448,-668.1876252,0.00020973,2]
[365738665,1749862232458,-789.1244893,0.00020988,2]
[365738666,1749862232468,-1000.0,0.000218,2]
[365738667,1749862232478,-1000.0,0.000218,3]
[365738668,1749862232487,-300.0,0.00021803,2]
[365738669,1749862232496,-300.0,0.00021803,2]
[365738670,1749862232505,-300.0,0.00021803,2]
[365738671,1749862232515,-1200.0,0.00021803,2]
[365738672,1749862232524,-361.26460871,0.00021803,4]
[365738673,1749862232533,-460.0,0.00021804,4]
[365738674,1749862232542,-440.0,0.00021804,4]
[365738675,1749862232551,-460.0,0.00021804,4]
[365738676,1749862232561,-420.0,0.00021804,4]
[365738677,1749862232570,-400.0,0.00021804,4]
[365738678,1749862232579,-460.0,0.00021804,4]
[365738679,1749862232589,-442.58782504,0.00021804,4]
[365738680,1749862232598,-430.0,0.00021804,4]
[365738681,1749862232607,-404.86649742,0.00021804,4]
[365738682,1749862232617,-460.0,0.00021804,4]
[365738683,1749862232626,-460.0,0.00021804,4]
[365738684,1749862232636,-460.0,0.00021804,4]
[365738685,1749862232645,-430.0,0.00021804,4]
[365738686,1749862232654,-460.0,0.00021804,4]
[365738687,1749862232664,-430.0,0.00021804,4]
[365738688,1749862232673,-460.0,0.00021804,4]
[365738689,1749862232682,-460.0,0.00021804,4]
[365738690,1749862232691,-400.0,0.00021804,4]
[365738691,1749862232700,-460.0,0.00021804,4]
[365738692,1749862232710,-430.0,0.00021804,4]
[365738693,1749862232719,-460.0,0.00021804,4]
[365738694,1749862232728,-276.97095258,0.00021804,4]
[365738695,1749862232737,-440.0,0.00021804,4]
[365738696,1749862232746,-460.0,0.00021804,4]
[365738697,1749862232755,-400.0,0.00021804,4]
[365738698,1749862232764,-330.90097096,0.00021804,4]
[365738699,1749862232773,-337.8405064,0.00021804,4]
[365738700,1749862232782,-460.0,0.00021804,4]
[365738701,1749862232792,-460.0,0.00021804,4]
[365738702,1749862232802,-460.0,0.00021804,4]
[365738703,1749862232811,-451.44192296,0.00021804,4]
[365738704,1749862232820,-900.75,0.00021804,4]
[365738705,1749862232830,-460.0,0.00021804,4]
[365738706,1749862232838,-460.0,0.00021804,4]
[365738707,1749862232848,-176.4870708,0.00021804,4]
[365738708,1749862232860,-406.46787362,0.00021804,4]
[365738709,1749862232869,-430.0,0.00021804,4]
[365738710,1749862232879,-233.67553299,0.00021804,4]
[365738711,1749862232888,-430.94232894,0.00021804,4]
[365738712,1749862232897,-460.0,0.00021804,4]
[365738713,1749862232907,-527.63,0.00021804,4]
[365738714,1749862232916,-460.0,0.00021804,4]
[365738715,1749862232926,-460.0,0.00021804,4]
[365738716,1749862232937,-460.0,0.00021804,4]
[365738717,1749862232948,-460.0,0.00021804,4]
[365738718,1749862232958,-460.0,0.00021804,4]
[365738719,1749862232967,-460.0,0.00021804,4]
[365738720,1749862232976,-460.0,0.00021804,4]
[365738721,1749862232985,-460.0,0.00021804,4]
[365738722,1749862232995,-460.0,0.00021804,4]
[365738723,1749862233004,-460.0,0.00021804,4]
[365738724,1749862233014,-725.53,0.00021804,4]
[365738725,1749862233024,-430.0,0.00021804,4]
[365738726,1749862233033,-460.0,0.00021804,4]
[365738727,1749862233043,-460.0,0.00021804,4]
[365738728,1749862233053,-460.0,0.00021804,4]
[365738729,1749862233063,-460.0,0.00021804,4]
[365738730,1749862233073,-460.0,0.00021804,4]
[365738731,1749862233083,-420.0,0.00021804,4]
[365738732,1749862233093,-484.27,0.00021804,4]
[365738733,1749862233102,-460.0,0.00021804,4]
[365738734,1749862233112,-460.0,0.00021804,4]
[365738735,1749862233122,-4052.33,0.00021804,4]
[365738736,1749862233131,-460.0,0.00021804,4]
[365738737,1749862233141,-1181.2,0.00021804,4]
[365738738,1749862233151,-202.30790771,0.00021804,4]
[365738739,1749862233162,-430.0,0.00021804,4]
[365738740,1749862233173,-460.0,0.00021804,4]
[365738741,1749862233182,-460.0,0.00021804,4]
[365738742,1749862233193,-370.0,0.00021804,4]
[365738743,1749862233202,-450.0,0.00021804,4]
[365738744,1749862233212,-432.37978503,0.00021804,4]
[365738745,1749862233221,-460.0,0.00021804,4]
[365738746,1749862233230,-659.53,0.00021804,4]
[365738747,1749862233240,-460.0,0.00021804,4]
[365738748,1749862233249,-460.0,0.00021804,4]
[365738749,1749862233259,-603.53,0.00021804,4]
[365738750,1749862233269,-460.0,0.00021804,4]
[365738751,1749862233278,-460.0,0.00021804,4]
[365738752,1749862233288,-460.0,0.00021804,4]
[365738753,1749862233297,-460.0,0.00021804,4]
[365738754,1749862233306,-460.0,0.00021804,4]
[365738755,1749862233316,-460.0,0.00021804,4]
[365738756,1749862233325,-360.0,0.00021804,4]
[365738757,1749862233335,-460.0,0.00021804,4]
[365738758,1749862233346,-460.0,0.00021804,4]
[365738759,1749862233356,-460.0,0.00021804,4]
[365738760,1749862233369,-440.0,0.00021804,4]
[365738761,1749862233379,-1517.7,0.00021804,4]